bitfinex/quotes_ETHUSD_20251021
["timestamp","ask_amount","ask_price","bid_price","bid_amount"]
[1761032184903,3.262,3899.9,3899.5,0.4393]
[1761032185073,1.728,3899.8,3899.5,0.4393]
[1761032185269,1.728,3899.6,3899.5,0.4393]
[1761032185916,1.728,3900.3,3899.5,0.4393]
[1761032186089,0.128,3899.7,3899.5,0.4393]
[1761032186292,1.856,3899.7,3899.5,0.4393]
[1761032187993,1.856,3899.7,3899.5,3.00371733]
[1761032188428,1.856,3899.7,3899.6,3.00166557]
[1761032188933,0.128,3899.7,3899.6,3.00166557]
[1761032190305,0.001,3899.8,3899.6,0.98328461]
[1761032190628,0.001,3899.8,3899.7,0.4373]
[1761032190998,0.001,3899.8,3899.5,0.002]
[1761032191195,0.129,3899.8,3899.6,0.4467]
[1761032191400,0.129,3899.8,3899.5,0.002]
[1761032191642,0.129,3899.8,3899.5,0.4487]
[1761032192337,0.129,3899.8,3899.6,2.56431628]
[1761032192535,0.129,3899.8,3899.7,2.56429981]
[1761032193001,0.129,3899.8,3899.7,3.01099981]
[1761032193197,0.129,3899.8,3899.7,0.4467]
[1761032195006,0.129,3899.8,3899.7,3.01099981]
[1761032195239,0.129,3899.8,3899.7,0.4467]
[1761032196006,0.129,3899.8,3899.5,0.002]
[1761032196208,0.129,3899.8,3899.5,0.4487]
[1761032196843,0.129,3899.8,3899.7,2.56429981]
[1761032197141,0.129,3899.8,3899.7,3.01099981]
[1761032197327,0.001,3899.8,3899.7,3.56874278]
[1761032200833,0.001,3899.8,3899.7,4.07562278]
[1761032201545,0.001,3899.8,3899.7,5.93162278]
[1761032202167,0.001,3899.8,3899.7,3.56874278]
[1761032204553,0.001,3899.8,3899.7,6.83074278]
[1761032208957,0.001,3899.8,3899.7,6.27299981]
[1761032213432,0.001,3899.8,3899.7,5.82629981]
[1761032213632,0.001,3899.8,3899.7,6.27299981]
[1761032220267,0.001,3899.8,3899.7,5.82629981]
[1761032222385,0.001,3899.8,3899.7,3.262]
[1761032222560,0.001,3899.8,3899.7,5.82629981]
[1761032225356,0.001,3899.8,3899.7,6.28359981]
[1761032225988,0.001,3899.8,3899.7,12.45381949]
[1761032230996,0.001,3899.8,3899.7,12.96069949]
[1761032231722,0.001,3899.8,3899.7,18.65070305]
[1761032231916,0.001,3899.8,3899.7,12.96069949]
[1761032232226,0.001,3899.8,3899.7,20.37870305]
[1761032233816,0.001,3899.8,3899.7,14.68869949]
[1761032234019,0.001,3899.8,3899.7,12.96069949]
[1761032234432,0.001,3899.8,3899.7,14.68869949]
[1761032240635,0.001,3899.8,3899.7,20.37870305]
[1761032240830,0.001,3899.8,3899.7,14.68869949]
[1761032241047,0.001,3899.8,3899.7,18.65070305]
[1761032241940,0.001,3900.2,3900.1,3.07091681]
[1761032242121,0.001,3900.2,3900.1,12.94092399]
[1761032242444,0.001,3900.2,3900.1,13.37912399]
[1761032244661,0.001,3900.2,3900.1,12.19754399]
[1761032244948,0.001,3900.2,3900.1,12.63574399]
[1761032247650,0.001,3900.2,3900.1,13.14262399]
[1761032248057,0.001,3900.2,3900.1,12.19754399]
[1761032248432,0.001,3900.2,3900.1,12.63574399]
[1761032249931,0.001,3900.2,3900.1,12.19754399]
[1761032250540,0.001,3900.2,3900.1,12.63574399]
[1761032250851,0.001,3900.2,3900.1,12.19754399]
[1761032251168,0.001,3900.2,3900.1,12.65034399]
[1761032251667,0.001,3900.2,3900.1,5.94403681]
[1761032251873,0.001,3900.2,3900.1,0.128]
[1761032252171,0.001,3900.2,3900.1,2.56403681]
[1761032252850,0.001,3900.2,3900.0,4.74508213]
[1761032253048,0.001,3900.2,3900.1,2.56403681]
[1761032254269,0.1005,3900.2,3899.6,0.002]
[1761032254478,0.2285,3900.2,3899.7,3.25]
[1761032254775,0.2285,3900.2,3899.8,2.56423362]
[1761032254962,0.0995,3900.1,3899.8,2.56423362]
[1761032255141,0.0995,3900.1,3899.7,5.81428495]
[1761032255559,0.0995,3900.1,3899.8,2.56421683]
[1761032255964,0.0995,3900.1,3899.9,2.5641651]
[1761032256488,0.0995,3900.1,3899.8,2.56421059]
[1761032256692,0.0995,3900.0,3899.6,0.002]
[1761032256897,0.75185036,3899.9,3899.6,0.002]
[1761032257265,0.0995,3899.8,3899.6,0.002]
[1761032258382,0.0995,3900.0,3899.6,0.002]
[1761032259502,0.001,3900.2,3899.6,0.002]
[1761032259794,0.1005,3900.2,3899.8,2.56422209]
[1761032259999,0.1005,3900.2,3899.7,2.56428476]
[1761032260976,0.1005,3900.2,3899.8,2.56420002]
[1761032261180,0.001,3900.2,3899.9,2.56415644]
[1761032261378,0.001,3900.2,3899.6,2.56636276]
[1761032261379,0.001,3900.2,3900.0,2.56407645]
[1761032262268,0.001,3900.2,3899.6,0.002]
[1761032262468,0.001,3900.2,3899.8,2.5642262]
[1761032262977,0.1005,3900.2,3899.8,2.5642262]
[1761032263390,0.001,3900.2,3899.6,0.002]
[1761032263597,0.1005,3900.2,3899.8,2.56423332]
[1761032264113,0.1005,3900.2,3899.9,2.56415634]
[1761032264492,0.1005,3900.2,3899.8,2.56421789]
[1761032265411,0.0995,3900.1,3899.6,2.56632756]
[1761032265800,0.0995,3900.1,3899.7,2.56427888]
[1761032266003,0.0995,3900.1,3899.6,0.002]
[1761032266204,0.0995,3900.1,3899.8,2.56423152]
[1761032266609,0.0995,3900.0,3899.6,0.002]
[1761032266817,0.2275,3900.0,3899.7,2.564298]
[1761032267818,0.2275,3900.0,3899.6,2.56634436]
[1761032268018,0.0995,3899.9,3899.6,0.002]
[1761032268315,0.128,3899.7,3899.6,0.002]
[1761032271190,0.2275,3899.7,3899.6,0.002]
[1761032271517,0.67946697,3899.7,3899.6,0.002]
[1761032271691,0.2275,3899.7,3899.6,0.002]
[1761032273617,1.9555,3899.7,3899.6,0.002]
[1761032274026,4.51979981,3899.7,3899.6,0.002]
[1761032276507,1.9555,3899.7,3899.6,0.002]
[1761032277206,5.2055,3899.7,3899.6,0.002]
[1761032278326,7.76979981,3899.7,3899.6,0.002]
[1761032281333,0.2275,3899.7,3899.6,0.002]
[1761032281534,3.4775,3899.7,3899.6,0.002]
[1761032281706,5.2055,3899.7,3899.6,0.002]
[1761032282931,7.76979981,3899.7,3899.6,0.002]
[1761032284038,8.63873464,3899.7,3899.6,0.002]
[1761032284254,8.96000534,3899.7,3899.6,0.002]
[1761032284554,9.0628684,3899.7,3899.6,0.002]
[1761032284702,8.7415977,3899.7,3899.6,0.002]
[1761032284898,8.37954287,3899.7,3899.6,0.002]
[1761032286033,8.78188021,3899.7,3899.6,0.002]
[1761032288816,9.18416477,3899.7,3899.6,0.002]
[1761032289012,2.63548496,3899.7,3899.6,0.002]
[1761032289323,8.34792171,3899.7,3899.6,0.002]
[1761032289536,8.44742171,3899.7,3899.6,0.002]
[1761032289733,5.19642171,3899.7,3899.6,0.002]
[1761032289918,5.09692171,3899.7,3899.6,0.002]
[1761032290246,15.78647027,3899.7,3899.6,0.002]
[1761032292443,15.68697027,3899.7,3899.6,0.002]
[1761032293045,12.02859027,3899.7,3899.6,0.002]
[1761032293256,15.28259027,3899.7,3899.6,0.002]
[1761032295843,15.18309027,3899.7,3899.6,0.002]
[1761032298061,15.28259027,3899.7,3899.6,0.002]
[1761032298276,15.18309027,3899.7,3899.6,0.002]
[1761032298635,15.28259027,3899.7,3899.6,0.002]
[1761032298829,15.18309027,3899.7,3899.6,0.002]
[1761032299765,15.28259027,3899.7,3899.6,0.002]
[1761032301475,15.18309027,3899.7,3899.6,0.002]
[1761032302286,14.78075293,3899.7,3899.6,0.002]
[1761032302666,2.13028456,3899.7,3899.6,0.002]
[1761032302862,3.254,3899.7,3899.6,0.4613]
[1761032303185,4.982,3899.7,3899.6,0.4613]
[1761032303553,4.984,3899.7,3899.6,0.4613]
[1761032303772,3.256,3899.7,3899.6,0.4613]
[1761032304889,0.001,3899.8,3899.6,0.7642746]
[1761032305187,0.001,3899.8,3899.7,2.56429981]
[1761032305375,0.001,3899.8,3899.7,3.02359981]
[1761032308989,0.001,3899.8,3899.7,0.4593]
[1761032309380,0.001,3899.8,3899.7,3.02359981]
[1761032310480,0.001,3899.8,3899.7,0.4593]
[1761032310791,0.001,3899.8,3899.7,3.02359981]
[1761032311510,0.001,3899.8,3899.7,3.65991858]
[1761032312091,0.001,3899.8,3899.7,3.78791858]
[1761032314600,0.001,3899.8,3899.7,0.4593]
[1761032314980,0.001,3899.8,3899.6,0.002]
[1761032315310,0.001,3899.8,3899.7,0.4315]
[1761032315680,0.129,3899.8,3899.7,0.4315]
[1761032317608,0.129,3899.8,3899.7,2.99579981]
[1761032318318,0.129,3899.8,3899.7,3.44769512]
[1761032319291,0.129,3899.8,3899.7,2.99579981]
[1761032320004,0.129,3899.8,3899.6,0.002]
[1761032320322,0.129,3899.8,3899.7,0.4315]
[1761032320526,0.129,3899.8,3899.6,0.002]
[1761032321293,0.129,3899.8,3899.6,0.4335]
[1761032323029,0.64,3899.8,3899.6,0.002]
[1761032323249,1.728,3899.7,3899.6,0.002]
[1761032323405,0.512,3899.8,3899.6,0.002]
[1761032324125,3.252,3899.7,3899.6,0.002]
[1761032324319,3.252,3899.7,3899.6,0.4335]
[1761032324502,0.001,3899.8,3899.6,0.002]
[1761032324706,0.001,3899.8,3899.7,0.4315]
[1761032325235,0.001,3899.8,3899.6,0.002]
[1761032325441,0.001,3899.8,3899.7,0.4315]
[1761032327545,0.001,3899.8,3899.6,0.002]
[1761032328106,0.001,3899.8,3899.6,0.4335]
[1761032330242,0.001,3899.8,3899.6,2.99783897]
[1761032330442,0.001,3899.8,3899.6,0.002]
[1761032330647,11.22396837,3899.7,3899.6,0.002]
[1761032330874,12.6554911,3899.7,3899.6,0.002]
[1761032331438,12.3342204,3899.7,3899.6,0.002]
[1761032331872,11.9953739,3899.7,3899.6,0.002]
[1761032332047,9.43107409,3899.7,3899.6,0.002]
[1761032332252,1.728,3899.7,3899.6,0.002]
[1761032332458,4.981,3899.7,3899.6,0.002]
[1761032332665,5.08384719,3899.7,3899.6,0.002]
[1761032333053,5.08484719,3899.7,3899.6,0.002]
[1761032334078,7.748647,3899.7,3899.6,0.002]
[1761032334256,7.64579981,3899.7,3899.6,0.002]
[1761032337075,4.39179981,3899.7,3899.6,0.002]
[1761032337581,7.64579981,3899.7,3899.6,0.002]
[1761032338769,13.34018749,3899.7,3899.6,0.002]
[1761032339555,13.24068749,3899.7,3899.6,0.002]
[1761032339776,13.34018749,3899.7,3899.6,0.002]
[1761032339980,2.56447493,3899.5,3898.7,0.21992806]
[1761032340179,8.94838768,3899.4,3898.7,0.21992806]
[1761032340877,3.253,3899.3,3898.7,0.21992806]
[1761032341378,3.65544432,3899.3,3898.7,0.21992806]
[1761032341681,3.65544432,3899.3,3898.5,2.78088848]
[1761032341682,5.69438768,3899.1,3898.5,0.002]
[1761032341883,7.42238768,3898.8,3898.5,0.002]
[1761032342186,3.254,3898.7,3898.5,0.002]
[1761032342384,0.96604424,3898.6,3898.5,0.002]
[1761032342955,2.69404424,3898.6,3898.5,0.002]
[1761032344565,5.25906758,3898.6,3898.5,0.002]
[1761032345177,5.35806758,3898.6,3898.5,0.002]
[1761032345891,11.05245526,3898.6,3898.5,0.002]
[1761032346058,5.25906758,3898.6,3898.5,0.002]
[1761032346258,5.66147005,3898.6,3898.5,0.002]
[1761032346483,5.76047005,3898.6,3898.5,0.002]
[1761032347395,6.16283297,3898.6,3898.5,0.002]
[1761032347593,5.76047005,3898.6,3898.5,0.002]
[1761032349082,3.09644671,3898.6,3898.5,0.002]
[1761032349259,5.66147005,3898.6,3898.5,0.002]
[1761032349911,6.50719655,3898.6,3898.5,0.002]
[1761032350064,6.26735005,3898.6,3898.5,0.002]
[1761032351398,6.16835005,3898.6,3898.5,0.002]
[1761032351563,5.66147005,3898.6,3898.5,0.002]
[1761032351763,5.76436036,3898.6,3898.5,0.002]
[1761032352390,5.86336036,3898.6,3898.5,0.002]
[1761032354373,5.76436036,3898.6,3898.5,0.002]
[1761032354569,5.66147005,3898.6,3898.5,0.002]
[1761032355802,6.16835005,3898.6,3898.5,0.002]
[1761032355970,6.26735005,3898.6,3898.5,0.002]
[1761032356297,6.3702491,3898.6,3898.5,0.002]
[1761032357314,6.16835005,3898.6,3898.5,0.002]
[1761032357484,6.26735005,3898.6,3898.5,0.002]
[1761032357871,5.76047005,3898.6,3898.5,0.002]
[1761032358280,5.66147005,3898.6,3898.5,0.002]
[1761032358484,6.16835005,3898.6,3898.5,0.002]
[1761032360287,1.36844671,3898.6,3898.5,0.002]
[1761032360489,8.91647005,3898.6,3898.5,0.002]
[1761032360901,14.20845526,3898.6,3898.5,0.002]
[1761032361414,5.94904424,3898.6,3898.5,0.002]
[1761032361613,5.94904424,3898.6,3898.5,0.4303]
[1761032362891,8.51406758,3898.6,3898.5,0.002]
[1761032363395,5.94904424,3898.6,3898.5,0.002]
[1761032364985,8.51406758,3898.6,3898.5,0.002]
[1761032365691,5.94904424,3898.6,3898.5,0.002]
[1761032367124,8.51406758,3898.6,3898.5,0.002]
[1761032367923,0.001,3898.7,3898.5,0.4303]
[1761032368150,0.001,3898.7,3898.5,2.9953752]
[1761032368370,3.256,3898.7,3898.6,2.56502334]
[1761032368555,0.001,3898.7,3898.6,2.99332334]
[1761032369534,0.129,3898.7,3898.6,2.99332334]
[1761032370160,0.129,3898.7,3898.6,3.54956967]
[1761032370435,0.001,3898.7,3898.6,3.54956967]
[1761032375069,0.001,3899.1,3899.0,2.56476019]
[1761032375268,0.001,3900.1,3899.4,2.5644971]
[1761032375470,0.001,3900.1,3899.4,8.28452975]
[1761032375774,0.001,3900.1,3899.4,10.21355633]
[1761032376179,0.001,3900.1,3899.4,4.62198544]
[1761032376380,0.001,3900.1,3899.4,10.31637312]
[1761032376954,0.001,3900.1,3899.4,10.82325312]
[1761032379480,0.001,3899.9,3899.4,10.82325312]
[1761032383000,1e-08,3899.9,3899.8,2.56423406]
[1761032383295,1e-08,3899.9,3899.8,6.17566547]
[1761032383506,1e-08,3899.9,3899.8,12.34325315]
[1761032385115,1e-08,3899.9,3899.8,12.47125315]
[1761032385616,1e-08,3899.9,3899.8,12.5740525]
[1761032386320,1e-08,3899.9,3899.8,3.62266482]
[1761032386629,1e-08,3899.9,3899.8,12.5770525]
[1761032389398,1e-08,3899.9,3899.8,6.88266482]
[1761032390686,1e-08,3899.9,3899.8,3.14946482]
[1761032390894,1e-08,3899.9,3899.8,5.82223406]
[1761032391290,1e-08,3899.9,3899.8,6.29543406]
[1761032393295,1e-08,3899.9,3899.8,6.42343406]
[1761032394703,1e-08,3899.9,3899.8,3.386]
[1761032394895,1e-08,3899.9,3899.8,5.82223406]
[1761032395094,1e-08,3899.9,3899.8,6.29543406]
[1761032395289,1e-08,3899.9,3899.8,3.7312]
[1761032395532,1e-08,3899.9,3899.8,5.82223406]
[1761032396206,1e-08,3899.9,3899.8,0.002]
[1761032398825,0.10860001,3899.9,3899.8,0.002]
[1761032399017,0.20770001,3899.9,3899.8,0.002]
[1761032399405,0.65786857,3899.9,3899.8,0.002]
[1761032400816,0.20770001,3899.9,3899.8,0.002]
[1761032401151,2.77186832,3899.9,3899.8,0.002]
[1761032401350,1.93570001,3899.9,3899.8,0.002]
[1761032404644,4.49986832,3899.9,3899.8,0.002]
[1761032405738,5.00674832,3899.9,3899.8,0.002]
[1761032410878,2.67276832,3899.9,3899.8,0.002]
[1761032411039,6.03086832,3899.9,3899.8,0.002]
[1761032411244,7.75886832,3899.9,3899.8,0.002]
[1761032413502,8.56336839,3899.9,3899.8,0.002]
[1761032415093,8.16113871,3899.9,3899.8,0.002]
[1761032417091,7.95343871,3899.9,3899.8,0.002]
[1761032417564,8.06203871,3899.9,3899.8,0.002]
[1761032417998,8.16113871,3899.9,3899.8,0.002]
[1761032420007,8.06203871,3899.9,3899.8,0.002]
[1761032420178,8.16113871,3899.9,3899.8,0.002]
[1761032421270,2.1302704,3899.9,3899.8,0.002]
[1761032421475,5.3872704,3899.9,3899.8,0.002]
[1761032421675,5.4957704,3899.9,3899.8,0.002]
[1761032421884,5.5950704,3899.9,3899.8,0.002]
[1761032422066,5.4957704,3899.9,3899.8,0.002]
[1761032422578,8.05993871,3899.9,3899.8,0.002]
[1761032422893,5.4957704,3899.9,3899.8,0.002]
[1761032423486,5.3872704,3899.9,3899.8,0.002]
[1761032424199,4.98500001,3899.9,3899.8,0.002]
[1761032424574,4.98500001,3899.9,3899.8,0.4697]
[1761032425372,4.98500001,3899.9,3899.8,0.002]
[1761032425814,4.98500001,3899.9,3899.8,0.4697]
[1761032426019,4.98500001,3899.9,3899.8,0.002]
[1761032429981,7.75686832,3899.9,3899.8,0.002]
[1761032430184,8.78916216,3899.9,3899.8,0.002]
[1761032430394,8.69016216,3899.9,3899.8,0.002]
[1761032430596,6.12599385,3899.9,3899.8,0.002]
[1761032431277,6.01729385,3899.9,3899.8,0.002]
[1761032431711,8.58146216,3899.9,3899.8,0.002]
[1761032431910,6.22399385,3899.9,3899.8,0.002]
[1761032432117,8.69016216,3899.9,3899.8,0.002]
[1761032432284,8.78916216,3899.9,3899.8,0.002]
[1761032437233,6.22499385,3899.9,3899.8,0.002]
[1761032437402,9.19142369,3899.9,3899.8,0.002]
[1761032437835,8.78916216,3899.9,3899.8,0.002]
[1761032438337,9.09238025,3899.9,3899.8,0.002]
[1761032440704,9.49463975,3899.9,3899.8,0.002]
[1761032442502,9.09242166,3899.9,3899.8,0.002]
[1761032445029,7.36442166,3899.9,3899.8,0.002]
[1761032445232,7.46342166,3899.9,3899.8,0.002]
[1761032445549,7.36442166,3899.9,3899.8,0.002]
[1761032447144,3.65925951,3899.9,3899.8,0.002]
[1761032447345,3.65925951,3899.9,3899.8,0.4458]
[1761032447645,5.38725951,3899.9,3899.8,0.002]
[1761032447850,2.13025951,3899.9,3899.8,0.002]
[1761032448150,5.38325951,3899.9,3899.8,0.4458]
[1761032448347,4.98100001,3899.9,3899.8,0.4458]
[1761032454220,3.25300001,3899.9,3899.8,0.4458]
[1761032457438,3.25300001,3899.9,3899.8,0.74681485]
[1761032459538,4.98100001,3899.9,3899.8,0.4458]
[1761032460941,3.25300001,3899.9,3899.8,0.4458]
[1761032461970,1e-08,3899.9,3899.8,0.4458]
[1761032464636,1e-08,3899.9,3899.8,0.4714]
[1761032465773,1e-08,3899.9,3899.8,3.03563406]
[1761032466062,1e-08,3899.9,3899.8,0.4714]
[1761032473092,1e-08,3899.9,3899.8,3.03563406]
[1761032473396,1e-08,3899.9,3899.8,3.59563809]
[1761032475698,1e-08,3899.9,3899.8,3.74928043]
[1761032476002,1e-08,3899.9,3899.8,3.87728043]
[1761032476174,1e-08,3899.9,3899.8,9.56826017]
[1761032476374,1e-08,3899.9,3899.8,3.85163809]
[1761032476575,1e-08,3899.9,3899.8,3.87728043]
[1761032477203,1e-08,3899.9,3899.8,9.56826017]
[1761032477369,1e-08,3899.9,3899.8,9.92149783]
[1761032477690,1e-08,3899.9,3899.8,10.04949783]
[1761032479103,1e-08,3899.9,3899.8,11.77749783]
[1761032481313,0.001,3900.7,3900.4,3.0707196]
[1761032481605,0.001,3900.7,3900.4,12.72665841]
[1761032481809,0.001,3900.7,3900.4,13.17895841]
[1761032482710,0.001,3900.7,3900.4,13.28173346]
[1761032488612,0.001,3900.7,3900.4,3.83287372]
[1761032488827,0.001,3900.7,3900.4,7.08287372]
[1761032491304,0.001,3900.7,3900.4,3.83287372]
[1761032491499,0.001,3900.7,3900.4,7.08287372]
[1761032491914,0.001,3900.7,3900.4,0.23077505]
[1761032492121,0.001,3900.7,3900.4,5.91661465]
[1761032492513,0.001,3900.7,3900.4,3.25]
[1761032492715,0.1,3900.7,3900.4,3.25]
[1761032493139,0.001,3900.7,3899.9,2.56415853]
[1761032493328,0.128,3900.1,3899.9,2.56415853]
[1761032493530,0.128,3900.1,3900.0,2.56410256]
[1761032493853,0.128,3900.1,3899.9,2.56412396]
[1761032494033,0.128,3900.1,3900.0,2.56410256]
[1761032494435,0.128,3900.1,3899.9,5.81414605]
[1761032494618,0.128,3900.1,3900.0,2.56410256]
[1761032495836,0.001,3900.5,3900.3,2.56388295]
[1761032496015,0.129,3900.5,3900.2,5.8139207]
[1761032496212,0.129,3900.5,3900.4,2.5638396]
[1761032502158,0.129,3900.5,3900.4,3.0230396]
[1761032502519,0.129,3900.5,3900.4,2.5638396]
[1761032502917,0.129,3900.5,3900.3,2.56584659]
[1761032503359,0.129,3900.5,3900.3,0.002]
[1761032503794,0.1001,3900.4,3900.3,0.002]
[1761032504353,9.11992731,3900.4,3900.3,0.002]
[1761032504551,10.84792731,3900.4,3900.3,0.002]
[1761032505483,5.15694757,3900.4,3900.3,0.002]
[1761032508690,5.55914887,3900.4,3900.3,0.002]
[1761032509486,2.99530927,3900.4,3900.3,0.002]
[1761032509690,5.55914887,3900.4,3900.3,0.002]
[1761032510191,2.99530927,3900.4,3900.3,0.002]
[1761032510887,2.89520927,3900.4,3900.3,0.002]
[1761032511066,5.55914887,3900.4,3900.3,0.002]
[1761032515703,2.99630927,3900.4,3900.3,0.002]
[1761032516604,2.89620927,3900.4,3900.3,0.002]
[1761032516911,2.99630927,3900.4,3900.3,0.002]
[1761032517284,5.96692887,3900.4,3900.3,0.002]
[1761032517492,6.73164348,3900.4,3900.3,0.002]
[1761032517800,6.49611777,3900.4,3900.3,0.002]
[1761032519003,6.89831523,3900.4,3900.3,0.002]
[1761032519395,6.57207246,3900.4,3900.3,0.002]
[1761032520227,6.16987116,3900.4,3900.3,0.002]
[1761032521023,6.83448577,3900.4,3900.3,0.002]
[1761032521316,6.49611393,3900.4,3900.3,0.002]
[1761032521688,6.16987116,3900.4,3900.3,0.002]
[1761032521887,5.7676737,3900.4,3900.3,0.002]
[1761032522089,5.66482757,3900.4,3900.3,0.002]
[1761032522534,8.91582757,3900.4,3900.3,0.002]
[1761032523794,14.93305008,3900.4,3900.3,0.002]
[1761032523992,9.58044218,3900.4,3900.3,0.002]
[1761032524816,16.4128933,3900.4,3900.3,0.002]
[1761032525206,16.8151044,3900.4,3900.3,0.002]
[1761032525426,16.47673256,3900.4,3900.3,0.002]
[1761032525830,16.8151044,3900.4,3900.3,0.002]
[1761032532022,16.47673256,3900.4,3900.3,0.002]
[1761032533634,16.87899829,3900.4,3900.3,0.002]
[1761032533833,16.47673256,3900.4,3900.3,0.002]
[1761032535400,16.07452146,3900.4,3900.3,0.002]
[1761032536703,16.4767902,3900.4,3900.3,0.002]
[1761032536907,16.4767902,3900.4,3899.9,0.002]
[1761032536908,9.90343368,3900.0,3899.9,0.002]
[1761032537245,15.48591427,3900.0,3899.9,0.002]
[1761032537412,15.58601427,3900.0,3899.9,0.002]
[1761032538634,15.9882678,3900.0,3899.9,0.002]
[1761032541902,15.8881678,3900.0,3899.9,0.002]
[1761032542912,15.9882678,3900.0,3899.9,0.002]
[1761032543437,16.31451057,3900.0,3899.9,0.002]
[1761032543604,16.65288241,3900.0,3899.9,0.002]
[1761032543815,16.31451057,3900.0,3899.9,0.002]
[1761032546937,15.8881678,3900.0,3899.9,0.002]
[1761032547129,16.39055141,3900.0,3899.9,0.002]
[1761032550437,16.29045141,3900.0,3899.9,0.002]
[1761032550855,16.39055141,3900.0,3899.9,0.002]
[1761032552590,16.29045141,3900.0,3899.9,0.002]
[1761032559091,2.96638617,3900.0,3899.9,0.4378]
[1761032559275,7.94538617,3900.0,3899.9,0.4378]
[1761032559685,7.54310256,3900.0,3899.9,0.4378]
[1761032563712,7.54310256,3900.0,3899.9,0.002]
[1761032564205,7.54310256,3900.0,3899.9,0.4378]
[1761032565212,7.54310256,3900.0,3899.9,0.002]
[1761032567414,7.54310256,3900.0,3899.9,0.4378]
[1761032568408,7.54310256,3900.0,3899.9,0.002]
[1761032569830,7.94530699,3900.0,3899.9,0.002]
[1761032572192,7.94530699,3900.0,3899.9,0.4378]
[1761032572627,7.54310256,3900.0,3899.9,0.002]
[1761032573237,7.9453523,3900.0,3899.9,0.002]
[1761032573531,7.54310256,3900.0,3899.9,0.002]
[1761032574297,7.54310256,3900.0,3899.9,0.4378]
[1761032575257,4.979,3900.0,3899.9,0.4378]
[1761032575757,7.54310256,3900.0,3899.9,0.4378]
[1761032576425,7.9453322,3900.0,3899.9,0.4378]
[1761032578427,7.9453322,3900.0,3899.9,0.002]
[1761032578892,7.9453322,3900.0,3899.9,0.4378]
[1761032580758,7.9453322,3900.0,3899.9,0.002]
[1761032581062,7.9453322,3900.0,3899.9,0.439]
[1761032581269,7.9453322,3900.0,3899.9,0.002]
[1761032582526,8.04818574,3900.0,3899.9,0.002]
[1761032582742,9.29887202,3900.0,3899.9,0.002]
[1761032583262,9.70111919,3900.0,3899.9,0.002]
[1761032583857,9.29568475,3900.0,3899.9,0.002]
[1761032584060,8.95731291,3900.0,3899.9,0.002]
[1761032584372,9.05741291,3900.0,3899.9,0.002]
[1761032586680,8.95731291,3900.0,3899.9,0.002]
[1761032586843,19.94531558,3900.0,3899.9,0.002]
[1761032587043,20.04541558,3900.0,3899.9,0.002]
[1761032587243,19.64318594,3900.0,3899.9,0.002]
[1761032587862,19.54308594,3900.0,3899.9,0.002]
[1761032588979,10.09008102,3900.0,3899.9,0.439]
[1761032589189,11.61208102,3900.0,3899.9,0.439]
[1761032589344,13.34008102,3900.0,3899.9,0.439]
[1761032589663,10.77597846,3900.0,3899.9,0.439]
[1761032589855,13.34008102,3900.0,3899.9,0.439]
[1761032593444,10.77597846,3900.0,3899.9,0.439]
[1761032593684,13.34008102,3900.0,3899.9,0.439]
[1761032595486,13.34008102,3900.0,3899.9,0.002]
[1761032595790,13.34008102,3900.0,3899.9,0.439]
[1761032597482,10.77597846,3900.0,3899.9,0.439]
[1761032597684,2.23488,3899.9,3899.5,0.002]
[1761032597869,9.98749049,3899.6,3899.5,0.002]
[1761032598061,8.05124557,3899.6,3899.5,0.002]
[1761032598269,13.74637049,3899.6,3899.5,0.4533]
[1761032598982,13.3423562,3899.6,3899.5,0.002]
[1761032599958,13.3423562,3899.6,3899.5,0.4533]
[1761032600373,10.77799063,3899.6,3899.5,0.4533]
[1761032600588,13.3423562,3899.6,3899.5,0.4533]
[1761032605850,10.77799063,3899.6,3899.5,0.4533]
[1761032606292,10.67512492,3899.6,3899.5,0.4533]
[1761032607000,4.98,3899.6,3899.5,0.4533]
[1761032607972,0.128,3899.6,3899.5,0.4533]
[1761032608285,0.128,3899.6,3899.5,0.77699442]
[1761032609368,7.55112492,3899.6,3899.5,0.4533]
[1761032609570,1.856,3899.6,3899.5,0.4533]
[1761032612090,0.128,3899.6,3899.5,0.4533]
[1761032615308,0.128,3899.6,3899.5,3.01773133]
[1761032615518,0.128,3899.8,3899.6,2.56434318]
[1761032615802,0.128,3899.8,3899.7,0.02564299]
[1761032615983,0.128,3899.8,3899.7,0.46384299]
[1761032616574,0.128,3899.8,3899.7,0.4382]
[1761032617777,0.129,3899.8,3899.7,0.4382]
[1761032617978,0.129,3899.8,3899.7,0.73886259]
[1761032620017,0.129,3899.8,3899.7,0.4382]
[1761032623295,0.129,3899.8,3899.7,3.00249981]
[1761032623696,0.001,3899.8,3899.7,3.00249981]
[1761032624208,0.001,3899.8,3899.7,6.25149981]
[1761032624703,0.001,3899.8,3899.7,6.38049981]
[1761032625104,0.001,3899.8,3899.7,7.28818757]
[1761032629822,0.001,3899.8,3899.7,7.79506757]
[1761032637820,0.001,3899.8,3899.7,7.79406757]
[1761032640704,0.001,3899.8,3899.7,9.52206757]
[1761032647700,0.001,3899.8,3899.7,15.21719249]
[1761032647902,0.001,3899.8,3899.7,9.52206757]
[1761032648735,0.001,3899.8,3899.7,16.34520199]
[1761032651857,0.001,3899.8,3899.7,16.34420199]
[1761032654150,0.001,3899.8,3899.7,5.32898757]